Workbook

Sheet 46、本级公共预算收入
A1: 附表46
A2: 高新区2022年一般公共预算收入明细表
C3: 单位：万元
A4: 科目 | B4: 项 目 | C4: 预算数 | D4: 备注
B5: 一、地方一般公共预算收入 | C5: =C6+C22 -> 27416
A6: 101 | B6: （一）税收收入 | C6: =SUM(C7:C21) -> 24233
A7: 10101 | B7: 增值税 | C7: 11089
A8: 10104 | B8: 企业所得税 | C8: 4532
A9: 10106 | B9: 个人所得税 | C9: 637
A10: 10107 | B10: 资源税 | C10: 41
A11: 10109 | B11: 城市维护建设税 | C11: 1702
A12: 10110 | B12: 房产税 | C12: 1376
A13: 10111 | B13: 印花税 | C13: 774
A14: 10112 | B14: 城镇土地使用税 | C14: 1132
A15: 10113 | B15: 土地增值税 | C15: 1638
A16: 10114 | B16: 车船税 | C16: 1
A17: 10118 | B17: 耕地占用税 | C17: 982
A18: 10119 | B18: 契税 | C18: 329
A19: 10120 | B19: 烟叶税
A20: 10121 | B20: 环境保护税
A21: 10199 | B21: 其他税收收入
A22: 103 | B22: （二）非税收入 | C22: =SUM(C23:C30) -> 3183
A23: 10302 | B23: 专项收入 | C23: 1183
A24: 10304 | B24: 行政事业性收费收入 | C24: 1579
A25: 10305 | B25: 罚没收入 | C25: 21
A26: 10306 | B26: 国有资本经营收入
A27: 10307 | B27: 国有资源（资产）有偿使用收入 | C27: 400
A28: 10308 | B28: 捐赠收入
A29: 10309 | B29: 政府住房基金收入
A30: 10399 | B30: 其他收入
A31: 110 | B31: 二、转移性收入 | C31: =C32+C34+C97+C109+C70+C95 -> 33849
A32: 11001 | B32: （一）返还性收入 | C32: =C33 -> 333
A33: 1100199 | B33: 其它返还性收入 | C33: 333
A34: 11002 | B34: （二）一般性转移支付收入 | C34: =SUM(C35:C69) -> 11625
A35: 1100201 | B35: 体制补助收入
A36: 1100202 | B36: 均衡性转移支付收入 | C36: 442
A37: 1100207 | B37: 县级基本财力保障机制奖补资金收入 | C37: 1994
A38: 1100208 | B38: 结算补助收入 | C38: 8497
A39: 1100220 | B39: 基层公检法司转移支付收入
A40: 1100221 | B40: 城乡义务教育转移支付收入
A41: 1100222 | B41: 基本养老金转移支付收入
A42: 1100225 | B42: 产粮大县奖励资金收入
A43: 1100226 | B43: 重点生态功能区转移支付收入
A44: 1100227 | B44: 固定数额补助收入
A45: 1100228 | B45: 革命老区转移支付收入
A46: 1100229 | B46: 民族地区转移支付收入
A47: 1100241 | B47: 一般公共服务共同财政事权转移支付收入
A48: 1100242 | B48: 外交共同财政事权转移支付收入
A49: 1100243 | B49: 国防支出共同财政事权转移支付收入
A50: 1100244 | B50: 公共安全共同财政事权转移支付收入
A51: 1100245 | B51: 教育共同财政事权转移支付收入
A52: 1100246 | B52: 科学技术共同财政事权转移支付收入
A53: 1100247 | B53: 文化旅游体育与传媒共同财政事权转移支付收入
A54: 1100248 | B54: 社会保障和就业共同财政事权转移支付收入
A55: 1100249 | B55: 卫生健康共同财政事权转移支付收入
A56: 1100250 | B56: 节能环保 共同财政事权转移支付收入
A57: 1100251 | B57: 城乡社区共同财政事权转移支付收入
A58: 1100252 | B58: 农林水 共同财政事权转移支付收入
A59: 1100253 | B59: 交通运输 共同财政事权转移支付收入
A60: 1100254 | B60: 资源勘探工业信息等共同财政事权转移支付收入
A61: 1100255 | B61: 商业服务业等 共同财政事权转移支付收入
A62: 1100256 | B62: 金融共同财政事权转移支付收入
A63: 1100257 | B63: 自然资源海洋气象等共同财政事权转移支付收入
A64: 1100258 | B64: 住房保障共同财政事权转移支付收入
A65: 1100260 | B65: 灾害防治及应急管理共同财政事权转移支付收入
A66: 1100259 | B66: 粮油物资储备共同财政事权转移支付收入
A67: 1100260 | B67: 灾害防治及应急管理共同财政事权转移支付收入
A68: 1100269 | B68: 其他共同财政事权转移支付收入
A69: 1100299 | B69: 其他一般性转移支付收入 | C69: 692
A70: 11003 | B70: （三）专项转移支付收入 | C70: =SUM(C71:C90) -> 5704
A71: 1100301 | B71: 一般公共服务 | C71: 78
A72: 1100302 | B72: 外交
A73: 1100303 | B73: 国防支出
A74: 1100304 | B74: 公共安全
A75: 1100305 | B75: 教育
A76: 1100306 | B76: 科学技术 | C76: 100
A77: 1100307 | B77: 文化旅游体育与传媒 | C77: 30
A78: 1100308 | B78: 社会保障和就业 | C78: 3412
A79: 1100310 | B79: 卫生健康 | C79: 598
A80: 1100311 | B80: 节能环保
A81: 1100312 | B81: 城乡社区 | C81: 72
A82: 1100313 | B82: 农林水 | C82: 1348
A83: 1100314 | B83: 交通运输
A84: 1100315 | B84: 资源勘探工业信息等 | C84: 66
A85: 1100316 | B85: 商业服务业等
A86: 1100317 | B86: 金融
A87: 1100320 | B87: 自然资源海洋气象等
A88: 1100321 | B88: 住房保障
A89: 1100322 | B89: 粮油物资储备
A90: 1100324 | B90: 灾害防治及应急管理
A91: 1100399 | B91: 其他收入
A92: 11006 | B92: （四）下级上解收入
A93: 1100601 | B93: 体制上解收入
A94: 1100602 | B94: 专项上解收入
A95: 11008 | B95: （五）上年结转收入 | C95: 6125
B96: 上年专项结转
A97: 11009 | B97: （六）调入资金 | C97: =C98 -> 10062
A98: 1100901 | B98: 调入一般公共预算资金 | C98: =SUM(C99:C102) -> 10062
A99: 110090102 | B99: 从政府性基金预算调入一般公共预算资金
A100: 110090103 | B100: 从国有资本经营预算调入一般公共预算资金
A101: 110090104 | B101: 从抗疫特别国债调入一般公共预算资金
A102: 110090199 | B102: 从其他资金调入一般公共预算资金 | C102: 10062
A103: 11011 | B103: （七）债务转贷收入 | C103: =C104 -> 0
A104: 1101101 | B104: 地方政府一般债务转贷收入 | C104: =C105+C108 -> 0
A105: 110110101 | B105: 地方政府一般债券转贷收入 | C105: =SUM(C106:C107) -> 0
B106: 新增债券
B107: 再融资债券
A108: 110110103 | B108: 地方政府向国际组织借款转贷收入
A109: 11015 | B109: （八）动用预算稳定调节基金
B111: 收 入 总 计 | C111: =C5+C31 -> 61265

Sheet 47、本级公共预算支出
A1: 附表47
A2: 高新区2022年一般公共预算支出表
C3: 单位:万元
A4: 科目编码 | B4: 科目名称 | C4: 预算数 | D4: 备注
B5: 地方一般公共预算支出合计 | C5: =C6+C36+C38+C43+C49+C55+C63+C103+C134+C139+C145+C170+C176+C182+C184+C187+C190+C195+C196+C199+C179 -> 52192
A6: 201 | B6: 一般公共服务 | C6: =C7+C10+C13+C17+C19+C21+C23+C26+C28+C30+C32+C34 -> 7700
A7: 20103 | B7: 政府办公厅(室)及相关机构事务 | C7: =C8+C9 -> 5093
A8: 2010301 | B8: 行政运行 | C8: 936
A9: 2010399 | B9: 其他政府办公厅（室）及相关机构事务支出 | C9: 4156
A10: 20105 | B10: 统计信息事务 | C10: =C11+C12 -> 20
A11: 2010501 | B11: 行政运行 | C11: 10
A12: 2010507 | B12: 专项普查活动 | C12: 10
A13: 20106 | B13: 财政事务 | C13: =SUM(C14:C16) -> 343
A14: 2010601 | B14: 行政运行 | C14: 216
A15: 2010605 | B15: 财政国库业务 | C15: 72
A16: 2010699 | B16: 其他财政事务支出 | C16: 55
A17: 20107 | B17: 税收事务 | C17: 950
A18: 2010701 | B18: 行政运行 | C18: 950
A19: 20108 | B19: 审计事务 | C19: 100
A20: 2010804 | B20: 审计业务 | C20: 100
A21: 20111 | B21: 纪检监察事务 | C21: 33
A22: 2011199 | B22: 其他纪检监察事务支出 | C22: 33
A23: 20113 | B23: 商贸事务 | C23: =C24+C25 -> 458
A24: 2011301 | B24: 行政运行 | C24: 61
A25: 2011308 | B25: 招商引资 | C25: 397
A26: 20129 | B26: 群众团体事务 | C26: 6
A27: 2012906 | B27: 工会事务 | C27: 6
A28: 20132 | B28: 组织事务 | C28: =C29 -> 448
A29: 2013299 | B29: 其他组织事务支出 | C29: 448
A30: 20133 | B30: 宣传事务 | C30: 172
A31: 2013399 | B31: 其他宣传事务支出 | C31: 172
A32: 20134 | B32: 统战事务 | C32: 2
A33: 2013404 | B33: 宗教事务 | C33: 2
A34: 20138 | B34: 市场监督管理事务 | C34: 76
A35: 2013899 | B35: 其他市场监督管理事务 | C35: 76
A36: 203 | B36: 国防支出 | C36: 20
A37: 20399 | B37: 其他国防支出 | C37: 20
A38: 204 | B38: 公共安全支出 | C38: =C39+C41 -> 778
A39: 20402 | B39: 公安 | C39: =C40 -> 748
A40: 2040299 | B40: 其他公安支出 | C40: 748
A41: 20406 | B41: 司法 | C41: 30
A42: 2040699 | B42: 其他司法支出 | C42: 30
A43: 205 | B43: 教育支出 | C43: =C44 -> 7831
A44: 20502 | B44: 普通教育 | C44: =C45+C46+C47+C48 -> 7831
A45: 2050201 | B45: 学前教育 | C45: 248
A46: 2050202 | B46: 小学教育 | C46: 5450
A47: 2050203 | B47: 初中教育 | C47: 2129
A48: 2050205 | B48: 高等教育 | C48: 4
A49: 206 | B49: 科学技术支出 | C49: =C50+C52 -> 760
A50: 20601 | B50: 科学技术管理事务 | C50: 20
A51: 2060199 | B51: 其他科学技术管理事务支出 | C51: 20
A52: 20604 | B52: 技术研究与开发 | C52: =C53+C54 -> 740
A53: 2060404 | B53: 科技成果转化与扩散 | C53: 640
A54: 2060499 | B54: 其他技术研究与开发支出 | C54: 100
A55: 207 | B55: 文化旅游体育与传媒支出 | C55: =C56+C59+C61 -> 54
A56: 20701 | B56: 文化和旅游 | C56: =C57+C58 -> 33
A57: 2070109 | B57: 群众文化 | C57: 13
A58: 2070199 | B58: 其他文化和旅游支出 | C58: 20
A59: 20702 | B59: 文物 | C59: 20
A60: 2070204 | B60: 文物保护 | C60: 20
A61: 20706 | B61: 新闻出版电影 | C61: 2
A62: 2070607 | B62: 电影 | C62: 2
A63: 208 | B63: 社会保障和就业支出 | C63: =C64+C68+C71+C75+C77+C80+C82+C88+C91+C94+C97+C100+C102 -> 9107
A64: 20801 | B64: 人力资源和社会保障管理事务 | C64: 144
A65: 2080101 | B65: 行政运行 | C65: 58
A66: 2080107 | B66: 社会保险业务管理事务 | C66: 81
A67: 2080199 | B67: 其他人力资源和社会保障管理事务支出 | C67: 5
A68: 20802 | B68: 民政管理事务 | C68: 500
A69: 2080208 | B69: 基层政权建设和社区治理 | C69: 464
A70: 2080299 | B70: 其他民政管理事务支出 | C70: 35
A71: 20805 | B71: 行政事业单位养老支出 | C71: 2071
A72: 2080505 | B72: 机关事业单位基本养老保险缴费支出 | C72: 1172
A73: 2080506 | B73: 机关事业单位职业年金缴费支出 | C73: 562
A74: 2080599 | B74: 其他行政事业单位养老支出 | C74: 337
A75: 20807 | B75: 就业补助 | C75: 37
A76: 2080705 | B76: 公益性岗位补贴 | C76: 37
A77: 20808 | B77: 抚恤 | C77: =SUM(C78:C79) -> 1201
A78: 2080802 | B78: 伤残抚恤 | C78: 1068
A79: 2080805 | B79: 义务兵优待 | C79: 133
A80: 20809 | B80: 退役安置 | C80: 120
A81: 2080901 | B81: 退役士兵安置 | C81: 120
A82: 20810 | B82: 社会福利 | C82: =C83+C84+C85+C86+C87 -> 171
A83: 2081001 | B83: 儿童福利
A84: 2081002 | B84: 老年福利 | C84: 129
A85: 2081004 | B85: 殡葬 | C85: 12
A86: 2081005 | B86: 社会福利事业单位 | C86: 24
A87: 2081099 | B87: 其他社会福利支出 | C87: 6
A88: 20811 | B88: 残疾人事业 | C88: =C89+C90 -> 149
A89: 2081104 | B89: 残疾人康复 | C89: 56
A90: 2081107 | B90: 残疾人生活和护理补贴 | C90: 93
A91: 20819 | B91: 最低生活保障 | C91: =C92+C93 -> 470
A92: 2081901 | B92: 城市最低生活保障金支出
A93: 2081902 | B93: 农村最低生活保障金支出 | C93: 470
A94: 20821 | B94: 特困人员救助供养 | C94: =C95+C96 -> 1927
A95: 2082101 | B95: 城市特困人员救助供养支出 | C95: 540
A96: 2082102 | B96: 农村特困人员救助供养支出 | C96: 1387
A97: 20826 | B97: 财政对基本养老保险基金的补助 | C97: 2248
A98: 2082601 | B98: 财政对企业职工基本养老保险基金的补助 | C98: 609
A99: 2082602 | B99: 财政对城乡居民基本养老保险基金的补助 | C99: 1638
A100: 20828 | B100: 退役军人管理事务 | C100: =C101 -> 39
A101: 2082801 | B101: 行政运行 | C101: 39
A102: 2089999 | B102: 其他社会保障和就业支出 | C102: 30
A103: 210 | B103: 卫生健康支出 | C103: =C104+C108+C111+C131+C127+C120+C124+C117+C133+C106+C129+C115 -> 4333
A104: 21001 | B104: 卫生健康管理事务 | C104: 15
A105: 2100101 | B105: 行政运行 | C105: 15
A106: 21002 | B106: 公立医院 | C106: =C107 -> 40
A107: 2100299 | B107: 其他公立医院支出 | C107: 40
A108: 21003 | B108: 基层医疗卫生机构 | C108: =C109+C110 -> 317
A109: 2100302 | B109: 乡镇卫生院 | C109: 188
A110: 2100399 | B110: 其他基层医疗卫生机构支出 | C110: 129
A111: 21004 | B111: 公共卫生 | C111: 985
A112: 2100401 | B112: 疾病预防控制机构 | C112: 18
A113: 2100408 | B113: 基本公共卫生服务 | C113: 467
A114: 2100409 | B114: 重大公共卫生服务 | C114: 500
A115: 21006 | B115: 中医药 | C115: =C116 -> 10
A116: 2100601 | B116: 中医（民族医）药专项 | C116: 10
A117: 21007 | B117: 计划生育事务 | C117: =C118+C119 -> 169
A118: 2100717 | B118: 计划生育服务 | C118: 70
A119: 2100799 | B119: 其他计划生育事务支出 | C119: 99
A120: 21011 | B120: 行政事业单位医疗 | C120: 856
A121: 2101101 | B121: 行政单位医疗 | C121: 50
A122: 2101102 | B122: 事业单位医疗 | C122: 777
A123: 2101103 | B123: 公务员医疗补助 | C123: 29
A124: 21012 | B124: 财政对基本医疗保险基金的补助 | C124: 1477
A125: 2101202 | B125: 财政对城乡居民基本医疗保险基金的补助 | C125: 1404
A126: 2101299 | B126: 财政对其他基本医疗保险基金的补助 | C126: 74
A127: 21013 | B127: 医疗救助 | C127: =C128 -> 159
A128: 2101301 | B128: 城乡医疗救助 | C128: 159
A129: 21014 | B129: 优抚对象医疗 | C129: =C130 -> 270
A130: 2101401 | B130: 优抚对象医疗补助 | C130: 270
A131: 21015 | B131: 医疗保障管理事务 | C131: 21
A132: 2101599 | B132: 其他医疗保障管理事务支出 | C132: 21
A133: 21099 | B133: 其他卫生健康支出 | C133: 13
A134: 211 | B134: 节能环保支出 | C134: 115
A135: 21101 | B135: 环境保护管理事务 | C135: 95
A136: 2110199 | B136: 其他环境保护管理事务支出 | C136: 95
A137: 21103 | B137: 污染防治 | C137: 20
A138: 2110302 | B138: 水体 | C138: 20
A139: 212 | B139: 城乡社区支出 | C139: =C140+C143+C144 -> 430
A140: 21201 | B140: 城乡社区管理事务 | C140: 358
A141: 2120101 | B141: 行政运行 | C141: 128
A142: 2120104 | B142: 城管执法 | C142: 230
A143: 21205 | B143: 城乡社区环境卫生 | C143: 40
A144: 21299 | B144: 其他城乡社区支出 | C144: 32
A145: 213 | B145: 农林水支出 | C145: =C146+C155+C161+C163+C153+C167 -> 4202
A146: 21301 | B146: 农业农村 | C146: =C147+C148+C149+C150+C152+C151 -> 364
A147: 2130101 | B147: 行政运行 | C147: 11
A148: 2130108 | B148: 病虫害控制 | C148: 185
A149: 2130109 | B149: 农产品质量安全 | C149: 14
A150: 2130119 | B150: 防灾救灾 | C150: 4
A151: 2130122 | B151: 农业生产发展 | C151: 40
A152: 2130199 | B152: 其他农业农村支出 | C152: 111
A153: 21302 | B153: 林业和草原 | C153: 42
A154: 2130207 | B154: 森林资源管理 | C154: 42
A155: 21303 | B155: 水利 | C155: =C156+C157+C158+C159+C160 -> 243
A156: 2130311 | B156: 水资源节约管理与保护 | C156: 55
A157: 2130314 | B157: 防汛 | C157: 60
A158: 2130315 | B158: 抗旱
A159: 2130316 | B159: 农村水利 | C159: 30
A160: 2130321 | B160: 大中型水库移民后期扶持专项支出 | C160: 98
A161: 21305 | B161: 巩固脱贫衔接乡村振兴 | C161: =C162 -> 2558
A162: 2130599 | B162: 其他巩固脱贫衔接乡村振兴支出 | C162: 2558
A163: 21307 | B163: 农村综合改革 | C163: =C164+C166+C165 -> 885
A164: 2130701 | B164: 对村级公益事业建设的补助 | C164: 37
A165: 2130705 | B165: 对村民委员会和村党支部的补助 | C165: 193
A166: 2130799 | B166: 其他农村综合改革支出 | C166: 655
A167: 21399 | B167: 其他农林水支出 | C167: =C168+C169 -> 110
A168: 2139901 | B168: 化解其他公益性乡村债务支出 | C168: 60
A169: 2139999 | B169: 其他农林水支出 | C169: 50
A170: 214 | B170: 交通运输支出 | C170: =C171+C174 -> 1268
A171: 21401 | B171: 公路水路运输 | C171: 220
A172: 2140104 | B172: 公路建设 | C172: 24
A173: 2140106 | B173: 公路养护 | C173: 196
A174: 21402 | B174: 铁路运输 | C174: 1048
A175: 2140204 | B175: 铁路路网建设 | C175: 1048
A176: 215 | B176: 资源勘探工业信息等支出 | C176: =C177 -> 4366
A177: 21508 | B177: 支持中小企业发展和管理支出 | C177: 4366
A178: 2150899 | B178: 其他支持中小企业发展和管理支出 | C178: 4366
A179: 217 | B179: 金融支出 | C179: 35
A180: 21799 | B180: 其他金融支出 | C180: 35
A181: 2179999 | B181: 其他金融支出 | C181: 35
A182: 219 | B182: 援助其他地区支出 | C182: 36
A183: 21999 | B183: 其他支出 | C183: =C182 -> 36
A184: 220 | B184: 自然资源海洋气象等支出 | C184: 20
A185: 22001 | B185: 自然资源事务 | C185: 20
A186: 2200104 | B186: 自然资源规划及管理 | C186: 20
A187: 221 | B187: 住房保障支出 | C187: 910
A188: 22102 | B188: 住房改革支出 | C188: 910
A189: 2210201 | B189: 住房公积金 | C189: 910
A190: 224 | B190: 灾害防治及应急管理支出 | C190: 373
A191: 22401 | B191: 应急管理事务 | C191: 43
A192: 2240106 | B192: 安全监管 | C192: 43
A193: 22402 | B193: 消防救援事务 | C193: 331
A194: 2240201 | B194: 行政运行 | C194: 331
A195: 227 | B195: 预备费 | C195: 600
A196: 229 | B196: 其他支出 | C196: 8500
A197: 22902 | B197: 年初预留 | C197: 8500
A198: 22999 | B198: 其他支出
A199: 232 | B199: 债务付息支出 | C199: 754
A200: 23203 | B200: 地方政府一般债务付息支出 | C200: 754
... 13 more rows

Sheet 48、经济分类表
A1: 附表48
A2: 高新区2022年一般公共预算支出政府经济分类情况表
P3: 单位:万元
A4: 功能科目类名称 | B4: 总计 | C4: 机关工资福利支出 | D4: 机关商品和服务支出 | E4: 机关资本性支出（一） | F4: 机关资本性支出（二） | G4: 对事业单位经常性补助 | H4: 对事业单位资本性补助 | I4: 对企业补助 | J4: 对企业资本性支出 | K4: 对个人和家庭的补助 | L4: 对社会保障基金补助 | M4: 债务利息及费用支出 | N4: 债务还本支出 | O4: 转移性支出 | P4: 预备费及预留 | Q4: 其他支出
A5: 合计 | B5: =SUM(B6:B30) -> 61265 | C5: =SUM(C6:C30) -> 13456 | D5: =SUM(D6:D30) -> 2654 | E5: 5508 | F5: 0 | G5: 2140 | H5: 0 | I5: 740 | J5: 4366 | K5: 9526 | L5: 0 | M5: 754 | N5: 561 | O5: 12424 | P5: 9100 | Q5: 36
A6: 一般公共服务支出 | B6: 7700 | C6: 1703 | D6: 1804 | E6: 280 | O6: 3912
A7: 国防支出 | B7: 20 | D7: =B7 -> 20
A8: 公共安全支出 | B8: 778 | D8: 210 | E8: 178 | K8: 391
A9: 教育支出 | B9: 7831 | C9: 7372 | E9: 40 | G9: 418
A10: 科学技术支出 | B10: 760 | I10: 740 | K10: 20
A11: 文化旅游体育与传媒支出 | B11: 54 | G11: 53 | K11: 2
A12: 社会保障和就业支出 | B12: 9107 | C12: 2105 | G12: 824 | K12: 6178
A13: 卫生健康支出 | B13: 4333 | C13: 994 | E13: 500 | G13: 615 | K13: 2224
A14: 节能环保支出 | B14: 115 | D14: 50 | E14: 65
A15: 城乡社区支出 | B15: 430 | C15: 110 | D15: 18 | E15: 72 | G15: 230
A16: 农林水支出 | B16: 4202 | D16: 386 | E16: 3105 | K16: 711
A17: 交通运输支出 | B17: 1268 | E17: 1268
A18: 资源勘探工业信息等支出 | B18: 4366 | J18: 4366
A19: 金融支出 | B19: 35 | D19: 35
A20: 援助其他地区支出 | B20: 36 | Q20: 36
A21: 自然资源海洋气象等支出 | B21: 20 | D21: 20
A22: 住房保障支出 | B22: 910 | C22: 910
A23: 粮油物资储备支出
A24: 灾害防治及应急管理支出 | B24: 373 | C24: 262 | D24: 111
A25: 预备费 | B25: 600 | P25: 600
A26: 其他支出 | B26: 8500 | P26: 8500
A27: 转移性支出 | B27: 8512 | O27: 8512
A28: 债务还本支出 | B28: 561 | N28: 561
A29: 债务付息支出 | B29: 754 | M29: 754
A30: 债务发行费用支出

Sheet 49、基本支出
A1: 附表49
A2: 高新区2022年一般公共预算基本支出表
E3: 单位:万元
A4: 支出经济分类 | C4: 2022年预算数
A5: 科目编码 | B5: 科目名称 | C5: 合计 | D5: 人员支出 | E5: 公用支出
B6: 合计 | C6: =D6+E6 -> 11739 | D6: =D7+D38 -> 11142 | E6: =E19 -> 597
A7: 301 | B7: 工资福利支出 | C7: 10992 | D7: =SUM(D8:D18) -> 10992
A8: 30101 | B8: 基本工资 | C8: 4166 | D8: 4166
A9: 30102 | B9: 津贴补贴 | C9: 2832 | D9: 2832
A10: 30103 | B10: 奖金（13个月） | C10: 307 | D10: 307
A11: 30107 | B11: 绩效工资 | C11: 0
A12: 30108 | B12: 机关事业单位基本养老保险缴费 | C12: 1172 | D12: 1172
A13: 30109 | B13: 职业年金缴费 | C13: 562 | D13: 562
A14: 30110 | B14: 职工基本医疗缴费 | C14: 827 | D14: 827
A15: 30111 | B15: 公务员医疗补助缴费 | C15: 29 | D15: 29
A16: 30112 | B16: 其他社会保障缴费 | C16: 188 | D16: 188
A17: 30113 | B17: 住房公积金 | C17: 910 | D17: 910
A18: 30199 | B18: 其他工资福利支出 | C18: 0
A19: 302 | B19: 商品和服务支出 | C19: 597 | E19: 597
A20: 30201 | B20: 办公费 | C20: 70 | E20: 70
A21: 30202 | B21: 印刷费 | C21: 10 | E21: 10
A22: 30203 | B22: 咨询费 | C22: 10 | E22: 10
A23: 30205 | B23: 水费 | C23: 4 | E23: 4
A24: 30206 | B24: 电费 | C24: 11 | E24: 11
A25: 30207 | B25: 邮电费 | C25: 12 | E25: 12
A26: 30209 | B26: 物业管理费 | C26: 278 | E26: 278
A27: 30211 | B27: 差旅费 | C27: 33 | E27: 33
A28: 30213 | B28: 维修(护)费 | C28: 13 | E28: 13
A29: 30215 | B29: 会议费 | C29: 15 | E29: 15
A30: 30216 | B30: 培训费 | C30: 6 | E30: 6
A31: 30217 | B31: 公务接待费 | C31: 6 | E31: 6
A32: 30228 | B32: 工会经费 | C32: 28 | E32: 28
A33: 30229 | B33: 福利费 | C33: 34 | E33: 34
A34: 30231 | B34: 公务用车运行维护费 | C34: 57 | E34: 57
A35: 30239 | B35: 公务交通补贴 | C35: 0
A36: 30240 | B36: 税金及附加费用 | C36: 0
A37: 30299 | B37: 其他商品和服务支出 | C37: 10 | E37: 10
A38: 303 | B38: 对个人和家庭的补助 | C38: 150 | D38: 150
A39: 30301 | B39: 离休费 | C39: 0
A40: 30302 | B40: 退休费 | C40: 0
A41: 30304 | B41: 抚恤金 | C41: 150 | D41: 150
A42: 399 | B42: 其他支出 | C42: 0
A43: 39951 | B43: 预备费及预留 | C43: 0

Sheet 50、本级政府基金收入
A1: 附表50
A2: 高新区2022年政府性基金预算收入表
C3: 单位:万元
A4: 科目 | B4: 项目 | C4: 预算数 | D4: 备注
B5: 地方政府性基金收入合计 | C5: =C7+C15 -> 37178
B6: 一、农业土地开发资金收入
A7: 1030148 | B7: 二、国有土地使用权出让收入 | C7: =C8 -> 35190
A8: 103014801 | B8: 土地出让价款收入 | C8: 35190
A9: 103014802 | B9: 补缴的土地价款
A10: 103014898 | B10: 缴纳新增建设用地土地有偿使用费
A11: 103014899 | B11: 其他土地出让收入 | L11: `
A12: 1030180 | B12: 三、彩票发行机构和彩票销售机构的业务费用
A13: 103018003 | B13: 福利彩票销售机构的业务费用
A14: 103018004 | B14: 体育彩票销售机构的业务费用
A15: 1030156 | B15: 四、城市基础设施配套费收入 | C15: 1988
A16: 1300178 | B16: 五、污水处理费收入
A17: 1030199 | B17: 六、其他政府性基金收入
A18: 1031099 | B18: 七、其他政府性基金专项债务对应项目专项收入
A19: 103109998 | B19: 其他地方自行试点项目收益专项债券对应项目专项收入
B20: 转移性收入合计
A21: 11004 | B21: 一、政府性基金转移支付收入 | C21: 81
A22: 1100404 | B22: 科学技术
A23: 1100405 | B23: 文化旅游体育与传媒
A24: 1100406 | B24: 社会保障和就业
A25: 1100407 | B25: 节能环保
A26: 1100408 | B26: 城乡社区
A27: 1100409 | B27: 农林水
A28: 1100410 | B28: 交通运输
A29: 1100411 | B29: 资源勘探工业信息等
A30: 1100499 | B30: 其他收入 | C30: 81
A31: 11006 | B31: 二、政府性基金上解收入
A32: 11008 | B32: 三、 上年结余收入
A33: 1100802 | B33: 政府性基金预算上年结余收入
A34: 11009 | B34: 四、调入资金
A35: 11011 | B35: 五、 债务转贷收入
A36: 1101102 | B36: 地方政府专项债务转贷收入
A37: 110110211 | B37: 国有土地使用权出让金债务转贷收入
A38: 110110231 | B38: 土地储备专项债券转贷收入
A39: 110110233 | B39: 棚户区改造专项债券转贷收入
A40: 110110298 | B40: 其他地方自行试点项目收益专项债券转贷收入
A41: 110110299 | B41: 其他政府性基金债务转贷收入
B42: 收入总计 | C42: =C5+C30 -> 37259

Sheet 51、本级政府性基金支出
A1: 附表51
A2: 高新区2022年政府性基金预算支出表
C3: 单位：万元
A4: 科目 | B4: 项 目 | C4: 预算数 | D4: 备注
B5: 地方政府性基金支出合计 | C5: =C6+C11+C37+C40+C43+C46+C56+C62+C66 -> 37259
A6: 208 | B6: 一、社会保障和就业支出
A7: 20822 | B7: 大中型水库移民后期扶持基金支出
A8: 2082201 | B8: 移民补助
A9: 2082202 | B9: 基础设施建设和经济发展
A10: 2082299 | B10: 其他大中型水库移民后期扶持资金支出
A11: 212 | B11: 二、城乡社区支出 | C11: =C12+C28 -> 34790
A12: 21208 | B12: 国有土地使用权出让收入安排的支出 | C12: =SUM(C15:C22) -> 32803
A13: 2120801 | B13: 征地和拆迁补偿支出
A14: 2120802 | B14: 土地开发支出
A15: 2120803 | B15: 城市建设支出 | C15: 1050
A16: 2120804 | B16: 农村基础设施建设支出 | C16: 13132
A17: 2120805 | B17: 补助被征地农民支出
A18: 2120806 | B18: 土地出让业务支出
A19: 2120807 | B19: 廉租住房支出
A20: 2120810 | B20: 棚户区改造支出
A21: 2120811 | B21: 公共租赁住房支出
A22: 2120899 | B22: 其他国有土地使用权出让收入安排的支出 | C22: 18621
A23: 21210 | B23: 国有土地收益基金安排的支出
A24: 2121001 | B24: 征地和拆迁补偿支出
A25: 2121002 | B25: 土地开发支出
A26: 2121099 | B26: 其他国有土地收益基金支出
A27: 21211 | B27: 农业土地开发资金安排的支出
A28: 21213 | B28: 城市基础设施配套费安排的支出 | C28: 1988
A29: 2121301 | B29: 城市公共设施 | C29: 60
A30: 2121302 | B30: 城市环境卫生 | C30: 1878
A31: 2121399 | B31: 其他城市基础设施配套费安排的支出 | C31: 50
A32: 21214 | B32: 污水处理费及对应专项债务收入安排的支出
A33: 2121401 | B33: 污水处理设施建设和运营
A34: 2121499 | B34: 其他污水处理费安排的支出
A35: 21216 | B35: 棚户区改造专项债券安排的支出
A36: 2121699 | B36: 其他棚户区改造专项债券安排的支出
A37: 214 | B37: 三、交通运输支出
A38: 21462 | B38: 车辆通行费安排的支出
A39: 2146299 | B39: 其他车辆通行费安排的支出
A40: 215 | B40: 四、资源勘探工业信息等支出
A41: 21562 | B41: 农网还贷资金支出
A42: 2156202 | B42: 地方农网还贷资金支出
A43: 216 | B43: 五、商业服务业等支出
A44: 21660 | B44: 旅游发展基金支出
A45: 2166004 | B45: 地方旅游开发项目补助
A46: 229 | B46: 六、其他支出 | C46: 81
A47: 22904 | B47: 其他政府性基金及对应专项债务收入安排的支出
A48: 2290401 | B48: 其他政府性基金安排的支出
A49: 2290402 | B49: 其他地方自行试点项目收益专项债券收入安排的支出
A50: 22960 | B50: 彩票公益金安排的支出 | C50: 81
A51: 2296002 | B51: 用于社会福利的彩票公益金支出 | C51: 20
A52: 2296003 | B52: 用于体育事业的彩票公益金支出
A53: 2296005 | B53: 用于红十字事业的彩票公益金支出
A54: 2296006 | B54: 用于残疾人事业的彩票公益金支出 | C54: 13
A55: 2296013 | B55: 用于城乡医疗救助的彩票公益金支出 | C55: 48
A56: 232 | B56: 七、债务付息支出 | C56: =C58 -> 2387
A57: 23204 | B57: 地方政府专项债务付息支出
A58: 2320411 | B58: 国有土地使用权出让金债务付息支出 | C58: 2387
A59: 2320431 | B59: 土地储备专项债券付息支出
A60: 2320433 | B60: 棚户区改造专项债券付息支出
A61: 2320498 | B61: 其他地方自行试点项目收益专项债券付息支出
A62: 233 | B62: 八、债务发行费用支出
A63: 23304 | B63: 地方政府专项债务发行费用支出
A64: 2330411 | B64: 国有土地使用权出让金债务发行费用支出
A65: 2330431 | B65: 土地储备专项债券发行费用支出
A66: 234 | B66: 九、抗疫特别国债安排的支出 | C66: =C67+C71 -> 0
A67: 23401 | B67: 基础设施建设 | C67: =SUM(C68:C70) -> 0
A68: 2340101 | B68: 公共卫生体系建设
A69: 2340102 | B69: 重大疫情防控救治体系建设
A70: 2340199 | B70: 其他基础设施建设
A71: 23402 | B71: 抗疫相关支出 | C71: =C72 -> 0
A72: 2340299 | B72: 抗疫相关支出
B73: 转移性支出合计 | C73: =C81 -> 0
A74: 230 | B74: 一、转移性支出
A75: 23004 | B75: 政府性基金转移支付
A76: 23008 | B76: 调出资金
A77: 2300802 | B77: 政府性基金预算调出资金
A78: 23009 | B78: 年终结余
A79: 2300902 | B79: 政府性基金预算年终结余
A80: 23011 | B80: 债务转贷支出
A81: 231 | B81: 二、债务还本支出 | C81: =C82 -> 0
A82: 23104 | B82: 地方政府专项债务还本支出 | C82: 0
A83: 2310411 | B83: 国有土地使用权出让金债务还本支出
A84: 23105 | B84: 抗疫特别国债还本支出
B85: 支出总计 | C85: =C5+C81 -> 37259
